{"text_format":"1","workbook":"xlsx","n_sheets":10,"sheets":["Instruktion","Definitioner","Grundinformation","Namn","Nivå på datainmatning","Mata in värden","Resultat","Regiondata","Sjukhusdata","Stödflik"],"not_rendered":{"charts":0,"images":2,"macros":1,"external_links":0,"defined_names":32,"comments":0,"pivot_tables":0},"unopened":[],"bounds":{"document_bytes":16777216,"sheet_cells":100000,"rows_first":2000,"rows_last":500,"rows_between":2000,"halvings":0,"cell_chars":16384,"cell_head_chars":4096},"cells_cut":0,"cells_raw":0,"read":"whole","date_system":"1900"}

{"sheet":"Instruktion","index":0,"n_rows":25,"n_cols":2,"rows_kept":25,"cut":false,"hidden":false,"merged":[]}
[null,{"$error":"#VALUE!"}]
[null,"Beräkna behovet av disponibla vårdplatser - Instruktioner för användning"]
[]
[null,"Det här är Socialstyrelsens verktyg för att översiktligt beräkna vårdplatsbehovet på sjukhus, kliniker, centrumbildningar eller liknande nivåer. Syftet med filen är att få en överblick över hur verksamheternas antal disponibla vårdplatser idag möter behovet av disponibla vårdplatser. Bakgrundsdata som används i filen baseras på samtliga verksamheter i regionerna som producerar slutenvård, inklusive privata.\n\nI stödet används olika metoder för inmatning än i framtagandet av riktvärdet nationellt och regionalt. Då datakällor, definitioner och tidsperiod kan skilja sig åt kan även riktvärden för vårdplatser skilja sig åt vid jämförelse av samma vårdgivare. Får du större differens än 5–20 vårdplatser totalt för hela sjukhuset så kan detta bero på datakvalitet för den data som matas in i filen, det kan bero på beläggningsgrad, medelvårdtid för patienter som väntar över 90 dagar som kräver sluten vård, utlokaliserade till eller från den avdelningen, antal patienter som läggs in med en längre vistelsetid än 4 h på akutmottagningen, antal utlokaliserade till och från avdelningen. Ger inte felsökningen i er egen data mer jämförbart resultat i inmatningsfilen kan du testa att använda vårdtillfällen i filen istället för disponibla vårdplatser. "]
[]
[null,"Hur du använder filen"]
[null,"Filen är tänkt att fyllas i ordning från första till sista flik. Om fel uppstår är det möjligt att gå tillbaka till de föregående fliken och fylla i ny data. Det går alltid bra att gå tillbaka till instruktionsfliken och sedan till den flik du arbetade i."]
[null,"Begrepp och definitioner: I fliken \"Definitioner\" förklaras verktygets centrala begrepp."]
[null,"Steg 1: Under fliken \"Grundinformation\" fyller du i grundinformation om var du vill beräkna behovet av vårdplatser."]
[null,"Steg 2: I andra fliken \"Namn\" fyller du i namn på de sjukhus, kliniker, centrumbildningar eller liknande du vill beräkna vårdplatsbehovet för."]
[null,"Steg 3: I fliken \"Nivå på datainmatning\" väljer du mellan olika alternativ för vilken typ av vårdplatsdata du vill mata in."]
[null,"Steg 4: I fliken \"Mata in värden\" fyller du i din data baserat på dina val i fliken innan."]
[null,"Steg 5: Under \"Resultat\" får du fram en sammanställning av den data du matat in och ditt estimerade vårdplatsbehov."]
[null,"När du fyllt i en flik bör du klicka på knappen \"Tryck här för att bekräfta och gå vidare till nästa flik\" för att spara dina svar och gå vidare. Det går att återställa en enskild flik genom att klicka på knappen \"Återställ flik\". Knappen \"Återställ all data\" raderar all inmatad data från samtliga flikar."]
[]
[null,"Beräkning och resultat"]
[null,"Bilden nedan visar hur det totala behovet av disponibla vårdplatser på kort sikt tas fram i detta dokumnet. För en mer detaljerad nedbrytning av beräkningarna, se formeln nedanför bilden. Om du väljer att inte mata in antalet patienter som väntar på planerad vård,  patienter som väntar över 4h på akutmottagning eller utlokaliserade patienter så antas dessa vara 0."]
[]
[]
[]
[]
[]
[null,"Läs mer om riktvärden och vårdplatser"]
[null,"Samtliga rapporter och metodbeskrivningar om riktvärdesberäkningar finns att finna på följande länk:"]
[null,"Länk till Socialstyrelsens sida om vårdplatser"]

{"sheet":"Definitioner","index":1,"n_rows":29,"n_cols":2,"rows_kept":29,"cut":false,"hidden":false,"merged":[]}
[null,{"$error":"#VALUE!"}]
[null,"Begrepp och definitioner"]
[]
[null,"Disponibla vårdplatser"]
[null,"Avser vårdplatser i sluten vård med fysisk utformning, utrustning och bemanning som säkerställer patientsäkerhet och arbetsmiljö. Data som matas in för antalet disponibla vårdplatser avser hur många man idag kan tillhandahålla, i genomsnitt per år."]
[]
[null,"Vårdtillfällen"]
[null,"Istället för att ange disponibla vårdplatser kan du välja att ange antalet vårdtillfällen per enhet och år. Antalet disponibla vårdplatser beräknas då utifrån antal vårdtillfällen, medelvårdtid och beläggningsgrad."]
[]
[null,"Medelvårdtid"]
[null,"Medelvårdtid avser den genomsnittliga vårdtiden på enheten för det senaste året. Om du inte har tillgång till medelvårdtiden kan denna lämnas tom. Då används istället data från patientregistret 2024: sjukhusets medelvårdtid i första hand, och regionens medelvårdtid i andra hand. Modellen tar inte hänsyn till att medelvårdtiden kan skilja sig för utlokaliserade patienter på egen/annan enhet."]
[]
[null,"Beläggningsgrad"]
[null,"Avser hur stor andel av de disponibla vårdplatserna som i genomsnitt är belagda. En vårdplats anses belagd om den upptas av enhetens egna patient eller av en utlokaliserad patient som vårdas på enheten även om det medicinska ansvaret ligger på en annan enhet. Denna siffra anges i procent och är under 100% om inte samtliga disponibla vårdplatser används men kan vara över 100% vid överbeläggningar."]
[]
[null,"Rekommenderad beläggningsgrad"]
[null,"Socialstyrelsen har tagit fram riktvärden för beläggningsgrad som är 85% för oplanerad vård och 95% för planerad vård. Beroende på andel planerad/oplanerad vård som utförs kan därför riktvärdet för beläggningsgrad ligga mellan 85 och 95%. Önskvärd beläggningsgrad baseras på riktvärdet för beläggningsgrad för valt sjukhus, region eller inmatad andel planerad/oplanerad vård, beroende på användarens val.För intensivvårdsavdelningar (IVA) beror riktvärdet för beläggningsgrad på avdelningsstorlek och är 50% för avdelningar med 1 till 4 vårdplatser, 65% för 5 till 9 vårdplatser och 80% för 10 eller fler vårdplatser. Storlek på IVA behöver anges för att kunna beräkna det totala behovet av disponibla vårdplatser."]
[]
[null,"Patienter som väntar över 90 dagar på vård som kräver slutenvård "]
[null,"Avser de patienter som väntar över vårdgarantins gräns för en vårdåtgärd som kräver att de skrivs in i slutenvård. För att detta ska kunna användas i beräkningarna behöver det anges per sjukhus/verksamhetsområde/centrumbildning/klinik som du matar in för. Anges som antal vårdtillällen per år."]
[]
[null,"Patienter som väntar över 4h på akutmottagning och sedan skrivs in i slutenvård "]
[null,"För att detta ska kunna användas i beräkningarna behöver det anges per sjukhus/verksamhetsområde/centrumbildning/klinik som du matar in för. Varje sådant fall gör att behovet räknas upp med ett halvt vårddygn. Du behöver ange antalet patienter per år för att vårdplatserna ska kunna beräknas korrekt. Anges som antal vårdtillfällen per år."]
[]
[null,"Utlokaliserade patienter på egen enhet från andra enheter"]
[null,"Antalet vårdtillfällen där patienten vårdas på din enhet trots att den skulle vårdats på annan enhet eller tillhör ett annat patientflöde. Anges i antal vårdtillfällen per år. Dessa ska räknas in i beläggningsgraden som matas in. Eftersom patienterna är hemmahörande på annan enhet dras antalet bort från det beräknade riktvärdet för enheten. Vårdbehovet beräknas utifrån genomsnittlig medelvårdtid  för utlokaliserade patienter på egen enhet från andra enheter. Om du inte har tillgång till medelvårdtiden för utlokaliserade patienter kan denna ruta lämnas tom. Då används istället enhetens medelvårdtid. Om enhetens medelvårdtid inte är angiven används data från patientregistret 2024: sjukhusets medelvårdtid i första hand, och regionens medelvårdtid i andra hand."]
[]
[null,"Utlokaliserade patienter från egen enhet till andra enheter "]
[null,"Antalet vårdtillfällen där patienten vårdas på annan enhet trots att den skulle vårdats på din enhet eller tillhör ditt patientflöde. Anges i antal vårdtillfällen per år. Dessa ska inte räknas in i beläggningsgraden som matas in. Eftersom patienterna är hemmahörande på vald enhet adderas antalet till det beräknade riktvärdet för enheten. Vårdbehovet beräknas utifrån genomsnittlig medelvårdtid  för utlokaliserade patienter från egen enhet till andra enheter. Om du inte har tillgång till medelvårdtiden för utlokaliserade patienter kan denna ruta lämnas tom. Då används istället enhetens medelvårdtid. Om enhetens medelvårdtid inte är angiven används data från patientregistret 2024: sjukhusets medelvårdtid i första hand, och regionens medelvårdtid i andra hand."]

{"sheet":"Grundinformation","index":2,"n_rows":11,"n_cols":2,"rows_kept":11,"cut":false,"hidden":false,"merged":[]}
[{"$error":"#VALUE!"},"Steg 1: Mata in grundläggande information om din önskade vårdnivå"]
[null,"Välj region:"]
[]
[]
[null,"Välj sjukhus (valfritt):"]
[]
[]
[null,"För vilken nivå vill du göra inmatningen? Exempelvis sjukhus, klinik, verksamhetsområde, centrumbildning, enhet, avdelning"]
[]
[]
[null,{"$f":"CONCATENATE(\"Hur många \",EnhetPlural,\" vill du mata in för? (Ange en siffra)\")","v":"Hur många enheter vill du mata in för? (Ange en siffra)"}]

{"sheet":"Namn","index":3,"n_rows":3,"n_cols":4,"rows_kept":3,"cut":false,"hidden":false,"merged":[]}
[{"$error":"#VALUE!"},null,"Steg 2: Mata in namn"]
[]
[null,null,{"$f":"CONCATENATE(\"Namn på \",EnhetSingular)","v":"Namn på enhet"},"Är detta en intensivvårdsavdelning (IVA)?\nVälj i så fall \"Ja\". Annars kan du lämna blankt eller svara \"Nej\". Notera att data för IVA matas in separat."]

{"sheet":"Nivå på datainmatning","index":4,"n_rows":19,"n_cols":3,"rows_kept":19,"cut":false,"hidden":false,"merged":[]}
[{"$error":"#VALUE!"},null,"Steg 3: Välj vilken data du vill mata in"]
[null,null,"Se fliken Instruktioner för ytterligare information om data och definitioner."]
[]
[null,null,"Hur vill du ange antalet vårdplatser?"]
[]
[]
[null,null,"Vill du ange andel planerad/oplanerad vård? (Påverkar ditt riktvärde för beläggningsgrad - svarar du nej används sjukhusets eller regionens riktvärde) "]
[]
[]
[null,null,{"$f":"IF(ISBLANK(Grundinformation!$B$9),\"Vill du ange antal patienter som väntar på vård över 90 dagar? (Anges per vald enhet som genomsnittligt antal per månad under ett år)\",IFERROR(CONCATENATE(\"Vill du ange antal patienter som väntar på vård över 90 dagar? (Anges per \",Grundinformation!$B$9,\" som genomsnittligt antal per månad under ett år)\"),\"Vill du ange antal patienter som väntar på vård över 90 dagar? (Anges per vald enhet som genomsnittligt antal per månad under ett år)\"))","v":"Vill du ange antal patienter som väntar på vård över 90 dagar? (Anges per vald enhet som genomsnittligt antal per månad under ett år)"}]
[]
[]
[null,null,{"$f":"IF(ISBLANK(Grundinformation!$B$9),\"Vill du ange antal patienter som väntar >4h på akutmottagningar som sedan skrivs in? (Anges per vald enhet och år)\",IFERROR(CONCATENATE(\"Vill du ange antal patienter som väntar >4h på akutmottagningar som sedan skrivs in? (Anges per \",Grundinformation!$B$9,\" och år)\"),\"Vill du ange antal patienter som väntar >4h på akutmottagningar som sedan skrivs in? (Anges per vald enhet och år)\"))","v":"Vill du ange antal patienter som väntar >4h på akutmottagningar som sedan skrivs in? (Anges per vald enhet och år)"}]
[]
[]
[null,null,{"$f":"IF(ISBLANK(Grundinformation!$B$9),\"Vill du ange antal utlokaliserade patienter på egen enhet från andra enheter? (Anges per vald enhet och år)\",IFERROR(CONCATENATE(\"Vill du ange antal utlokaliserade patienter på egen enhet från andra enheter? (Anges per \",Grundinformation!$B$9,\" och år)\"),\"Vill du ange antal utlokaliserade patienter på egen enhet från andra enheter? (Anges per vald enhet och år)\"))","v":"Vill du ange antal utlokaliserade patienter på egen enhet från andra enheter? (Anges per vald enhet och år)"}]
[]
[]
[null,null,{"$f":"IF(ISBLANK(Grundinformation!$B$9),\"Vill du ange antal utlokaliserade patienter från egen enhet till andra enheter? (Anges per vald enhet och år)\",IFERROR(CONCATENATE(\"Vill du ange antal utlokaliserade patienter från egen enhet till andra enheter? (Anges per \",Grundinformation!$B$9,\" och år)\"),\"Vill du ange antal utlokaliserade patienter från egen enhet till andra enheter? (Anges per vald enhet och år)\"))","v":"Vill du ange antal utlokaliserade patienter från egen enhet till andra enheter? (Anges per vald enhet och år)"}]

{"sheet":"Mata in värden","index":5,"n_rows":3,"n_cols":7,"rows_kept":3,"cut":false,"hidden":false,"merged":[]}
[{"$error":"#VALUE!"},null,{"$f":"IF(NOT(ISBLANK(Grundinformation!D9)),CONCATENATE(\"Steg 4: Mata in din data för \",LOWER(Grundinformation!D9)),\"Steg 4: Mata in din data\")","v":"Steg 4: Mata in din data"}]
[null,null,"Se fliken Instruktioner för ytterligare information om data och definitioner."]
[null,null,{"$f":"CONCATENATE(\"Namn på \",EnhetSingular)","v":"Namn på enhet"},"Genomsnittligt antal disponibla vårdplatser (genomsnitt per år)","Medelvårdtid i dagar\r\n(lämnas denna tom används sjukhusets/regionens medelvårdtid)","Genomsnittlig beläggningsgrad för året (%)","Genomsnittlig andel planerad vård (%)"]

{"sheet":"Resultat","index":6,"n_rows":9,"n_cols":14,"rows_kept":9,"cut":false,"hidden":false,"merged":[[1,8,4,9],[1,6,4,7],[1,4,4,5]]}
[{"$error":"#VALUE!"}]
[null,null,null,null,"Steg 5: Resultat\n\nObservera att behovet av disponibla vårdplatser som presenteras motsvarar ett genomsnitt över året, baserat på inmatad data."]
[]
[]
[]
[]
[]
[]
[null,null,null,null,{"$f":"CONCATENATE(\"Namn på \",EnhetSingular)","v":"Namn på enhet"},"Genomsnittligt antal disponibla vårdplatser","Genomsnittlig beläggningsgrad","Rekommenderad beläggningsgrad","Behov av disponibla vårdplatser för att nå rekommenderad beläggningsgrad","Disponibla vårdplatser för att eliminera väntetider över 90 dagar för åtgärder som kräver slutenvård","Disponibla vårdplatser för att minska väntetider över 4 timmar på akuten för patienter som skrivs in","Disponibla vårdplatser på egen enhet som upptas av patienter som utlokaliseras från annan enhet (subtraheras från totalt behov)","Behov av disponibla vårdplatser för att vårda patienter som utlokaliseras från egen enhet till andra enheter","Totalt behov av disponibla vårdplatser – med hänsyn till samtliga inmatade parametrar"]

{"sheet":"Regiondata","index":7,"n_rows":24,"n_cols":4,"rows_kept":24,"cut":false,"hidden":true,"merged":[[0,1,0,3]]}
[null,"Regiondata\nI denna flik finns data på region-nivå. Medelvårdtiden anges i dagar."]
[]
[null,"Region","Medelvårdtid","Riktvärde beläggningsgrad"]
[null,"Blekinge",4.3943648565037359,0.86858117621574782]
[null,"Dalarna",3.7751190580535834,0.87265209618376138]
[null,"Gotland",3.8634534111491248,0.86822112254199757]
[null,"Gävleborg",4.0791840060530218,0.86028372083068771]
[null,"Halland",3.5924440522980667,0.8650787803008313]
[null,"Jämtland Härjedalen",3.8877410054657937,0.8615747678712129]
[null,"Jönköping",3.5055625041142782,0.86143597543800354]
[null,"Kalmar",3.2818803517039252,0.88144480633186229]
[null,"Kronoberg",4.0075329566854991,0.86371240601503763]
[null,"Norrbotten",4.7649648218518381,0.85819910302570901]
[null,"Skåne",4.4490524581159026,0.8684999935396529]
[null,"Stockholm",4.0372773594950182,0.8859029924183629]
[null,"Södermanland",4.0615534792915913,0.85977840647682091]
[null,"Uppsala",5.1021323610650757,0.88605070659211682]
[null,"Värmland",4.5083216945996272,0.85837732829058611]
[null,"Västerbotten",4.7693467336683417,0.87457674583677614]
[null,"Västernorrland",4.0800387284169757,0.85563122923588031]
[null,"Västmanland",3.9428603756505995,0.8703661721238557]
[null,"Örebro",4.082381113511544,0.88269935794849563]
[null,"Östergötland",3.9424457802707789,0.86781400910211604]
[null,"Västra Götaland",4.3431789455369803,0.86973381436521113]

{"sheet":"Sjukhusdata","index":8,"n_rows":153,"n_cols":7,"rows_kept":153,"cut":false,"hidden":true,"merged":[[1,1,1,3],[1,5,1,6]]}
[]
[null,"Sjukhusdata\nI denna flik finns data på sjukhus-nivå. Medelvårdtiden anges i dagar.",null,null,null,"Beiga kolumner innehåller formler och bör INTE redigeras."]
[]
[null,"Sjukhus","Region","Vårdplatsbehov planerad vård","Vårdplatsbehov oplanerad vård","Medelvårdtid","Riktvärde beläggningsgrad"]
[null,"Blekingesjukhuset","Blekinge",45.247636851692072,248.37592414014787,4.3943648565037359,{"$f":"(((D5/(SUM(D5,E5))*0.95)+(E5/SUM(D5,E5)*0.85)))","v":0.86541008381577034}]
[null,"Falu lasarett","Dalarna",52.723225758155579,210.30257152041145,3.7262385321100919,0.87004488772723576]
[null,"Mora lasarett","Dalarna",13.192592488860983,68.80035358405658,3.170777279521674,0.86608991153596138]
[null,"Ludvika lasarett","Dalarna",12.505033074489504,18.640308582449371,6.9357484620642511,0.89015057279586296]
[null,"Avesta lasarett","Dalarna",9.6031061259706636,29.051751848280297,4.2155994550408717,0.87484320633739632]
[null,"Visby lasarett","Gotland",20.221022385253001,102.88171006107362,3.8634534111491248,0.8664261361087735]
[null,"Länssjukhuset Gävle-Sandviken","Gävleborg",31.341747458211685,262.41436837029892,4.4506431422798283,0.86066930891628091]
[null,"Bollnäs närsjukhus","Gävleborg",4.8460223218100893,36.667791706846678,2.7048722044728435,0.86167327655913495]
[null,"Hudiksvalls sjukhus","Gävleborg",6.6810340638970178,113.65589842494374,4.0069505736981466,0.85555193981242328]
[null,"Hallands sjukhus Halmstad","Halland",10.462697727926374,-2.3626486660237864,9.8477157360406089,0.97916832537640008]
[null,"Hallands sjukhus","Halland",38.820057251222323,382.9160077145612,3.6046392631758484,0.85920482274959631]
[null,"Specialistsjukvården i Falkenberg","Halland",4.4664941041127406,0.59144969463195118,11.427631578947368,0.93830651904873408]
[null,"Capio Movement Halmstad","Halland",5.5795225769341394,0,1.1568276684555754,0.95]
[null,"Östersunds sjukhus","Jämtland Härjedalen",23.784457139260642,188.773481195757,3.8877410054657937,0.86118963484759314]
[null,"Länssjukhuset Ryhov","Jönköping",38.207956283820941,252.39762134361942,3.8172235647029416,0.86314770232414595]
[null,"Höglandssjukhuset","Jönköping",6.819401624905213,115.38887817422052,3.4331759578717995,0.85558014697213169]
[null,"Värnamo sjukhus","Jönköping",5.3961824596273331,88.629572484731597,3.0603296361563181,0.85573904720341831]
[null,"Art Clinic Jönköping","Jönköping",2.3065861374748349,0,0.8813186813186813,0.95]
[null,"Västerviks sjukhus","Kalmar",23.142729068979914,64.595596271295392,2.8760110576430837,0.8763769897353586]
[null,"Länssjukhuset i Kalmar","Kalmar",74.539509391663074,171.89633558341367,3.4710584220216445,0.88024702408823741]
[null,"Oskarshamns sjukhus","Kalmar",6.6862818693862245,22.30633236901318,3.1919739696312366,0.87306201784498116]
[null,"Centrallasarettet i Växjö","Kronoberg",29.82243768335465,191.69954998392802,3.948222339366251,0.86346251809917263]
[null,"Ljungby lasarett","Kronoberg",4.9885124809979065,53.097107039537129,4.2505399568034559,0.85858820569045369]
[null,"Gällivare Sjukhus","Norrbotten",3.3231867526554653,39.463934426229514,3.8305135054912438,0.85776679211195772]
[null,"Piteå Älvdals sjukhus","Norrbotten",13.332931651932267,62.482063645130182,5.1940095302927158,0.86758614057771877]
[null,"Kalix sjukhus","Norrbotten",0.66899626114466504,27.823593699774992,4.8965327462850849,0.85234796577658345]
[null,"Kiruna Sjukhus","Norrbotten",1.4351452401495544,24.27515268402443,4.4562427071178528,0.85558198603680957]
[null,"Sunderby sjukhus","Norrbotten",14.405502990596803,194.9544519447123,4.8025020356799173,0.85688073466344028]
[null,"Haparanda sjukhem","Norrbotten",0.26747195858498707,5.6669881067180974,5.9108280254777066,0.85450709846627515]
[null,"Arvidsjaurs sjukhem","Norrbotten",0.11504170261719873,4.1240758598521374,4.5463917525773194,0.85271381250748302]
[null,"Jokkmokks sjukhem","Norrbotten",0.35087719298245612,2.3754419800707169,4.7307692307692308,0.86286999689730071]
[null,"Pajala sjukhem","Norrbotten",0.81679608858211106,5.564127290260366,7.7799227799227797,0.86280059389665142]
[null,"Överkalix sjukhem","Norrbotten",0.66148979004889275,4.1658630665380905,4.9385113268608416,{"$f":"(((D37/(SUM(D37,E37))*0.95)+(E37/SUM(D37,E37)*0.85)))","v":0.86370295086563398}]
[null,"Övertorneå sjukhem","Norrbotten",3.738855335058959E-2,5.93699774991964,4.5588235294117645,0.85062581412470972]
[null,"Centralsjukhuset i Kristianstad","Skåne",34.967457650936907,248.4819350691096,4.2691179346763155,0.86233640238752352]
[null,"Ängelholms sjukhus","Skåne",12.297461973297327,54.570877531340408,3.6364315042926467,0.86839055981410218]
[null,"Sjukhuset i Hässleholm","Skåne",20.446072697717792,43.972999035679841,4.0228013029315957,0.88173916069814728]
[null,"Simrishamns sjukhus","Skåne",7.1901064135749218E-2,39.929283188685311,6.4458829621957534,0.85017974733868196]
[null,"Skånes universitetssjukhus Malmö","Skåne",105.78708645406927,541.32449373191901,4.4232896983494596,0.86634758049356264]
[null,"Specialist Center Skåne AB","Skåne",1.4207650273224044,0,0.84013605442176875,0.95]
[null,"Aleris Specialistvård Ängelholm","Skåne",2.7379925222893298,8.0360012857602067E-2,1.1052036199095023,0.94714868839666255]
[null,"Capio Ortho Center Skåne AB","Skåne",3.6698303134886396,0,0.99531981279251169,0.95]
[null,"Skånes universitetssjukhus Lund","Skåne",145.91998849582973,429.58502089360337,5.248348110916587,0.87535512047942721]
[null,"Lasarettet i Landskrona","Skåne",4.7600396905389264,51.571841851494696,4.6613701484761654,0.85844999236708808]
[null,"Lasarettet Trelleborg","Skåne",15.195045359923709,44.847315975570559,4.1842584167424928,0.87530720814762675]
[null,"Helsingborgs Lasarett AB","Skåne",42.622088275185831,324.41385406621663,4.2580607247796278,0.86161251075393064]
[null,"Lasarettet i Ystad","Skåne",14.150898682541738,93.296721311475409,3.8281476121562954,0.8631700438626092]
[null,"Perituskliniken AB","Skåne",1.0468794938165085,0,1.0612244897959184,0.95]
[null,"Capio Spine Center Skåne","Skåne",0.10353753235547887,0,1,0.95]
[null,"Capio S:t Görans sjukhus","Stockholm",44.651471279451776,404.49193185470909,3.0963277357446022,0.85994147325060766]
[null,"S:t Eriks sjukhus","Stockholm",2.7023573397196099,5.6155576984892317,2.1745129870129869,0.88248839796158263]
[null,"Södersjukhuset","Stockholm",55.940536647221499,504.01954355512697,3.4431882763659982,0.85999009369150159]
[null,"Blackebergs sjukhus","Stockholm",71.513885651120674,16.248794599807137,6.7070638682013088,0.93148553057706396]
[null,"Sabbatsbergs sjukhem","Stockholm",47.160774818175391,28.277081324333011,6.7298603651987108,0.91251605921711887]
[null,"Stockholms sjukhem","Stockholm",106.03273128348327,10.05464480874317,8.1246418338108874,0.94133872678735098]
[null,"Stora Sköndals sjukhus","Stockholm",4.4797661908442032,18.897460623593698,14.332046332046332,0.86916294959365104]
[null,"Capio Geriatrik Vårberg","Stockholm",30.418917222101317,32.340083574413377,6.0518256772673737,0.89846940970384381]
[null,"Dalengeriatriken, Capio Legevisitten AB","Stockholm",60.605872440793227,73.342976534876243,7.323115577889447,0.89524553432467457]
[null,"Carlakliniken Uroclinic","Stockholm",1.4497625213088037E-2,0,1,0.95]
[null,"GynStockholm","Stockholm",0.35664158024196574,0,1.0165289256198347,0.95]
[null,"Art Clinic Stockholm","Stockholm",3.4794300511411282E-2,0,0.66666666666666663,0.95]
[null,"Södertälje Ögonklinik","Stockholm",0.80606796184769491,3.2144005143040825E-3,1.0689655172413792,0.94960280852965551]
[null,"Rehabcenter Mösseberg","Stockholm",6.20498359120168,0,4.9767441860465116,0.95]
[null,"Rehab Station Stockholm","Stockholm",37.276293947891958,1.986499517839923,12.993249758919962,0.94494050386513184]
[null,"Mälargården","Stockholm",10.417993478125064,0,3.9396929824561404,{"$f":"(((D69/(SUM(D69,E69))*0.95)+(E69/SUM(D69,E69)*0.85)))","v":0.95}]
[null,"Ersta sjukhus","Stockholm",57.76744662003798,35.324943747991,4.5974963181148745,0.91205388688770539]
[null,"Sophiahemmet","Stockholm",9.1422024593733155,0.16714882674381226,0.97594397076735684,0.94820450618301322]
[null,"Ortopediska Huset","Stockholm",4.3289908886280877,9.643201542912247E-3,1.0026809651474531,0.94977773646399988]
[null,"Capio Spine Center Stockholm","Stockholm",2.0818589805994421,0,0.95733333333333337,0.95]
[null,"Capio Ortho Center Stockholm","Stockholm",0.74517793595272497,0,1.0239043824701195,0.95]
[null,"Capio Kirurgkliniken Stockholm","Stockholm",0.74517793595272497,0,1.0489795918367346,0.95]
[null,"Capio Arytmicenter Stockholm AB","Stockholm",6.3789550937587355E-2,0,0.33333333333333331,0.95]
[null,"Långbro sjukhus","Stockholm",9.6003274161068983,3.0954676952748317,9.825287356321839,0.92561816595086854]
[null,"Carlakliniken Sophiahemmet Stockholm","Stockholm",0.5625078582678158,0,0.35793357933579334,0.95]
[null,"Ryggkirurgiskt Centrum AB","Stockholm",0.75097698603796026,1.9286403085824494E-2,0.8439490445859873,0.94749612881020295]
[null,"Karolinska universitetssjukhuset Solna","Stockholm",51.017115310471695,9.7031179684988746,7.1086519114688125,0.93401995933724558]
[null,"Karolinska universitetssjukhuset Huddinge","Stockholm",95.231178300805325,421.59816779170683,3.6568379284394883,0.8684260392759815]
[null,"Nya Karolinska Solna","Stockholm",192.68793670715311,354.6946319511411,4.1764747944225959,0.88520169397784376]
[null,"Danderyds sjukhus","Stockholm",86.896656894285911,472.92645451623275,3.2834168307374414,0.86552216318389263]
[null,"Södertälje sjukhus","Stockholm",46.442861990098955,147.82459016393443,3.621794092621855,0.87390666139651374]
[null,"Norrtälje sjukhus","Stockholm",26.450321217506204,87.942269366763099,4.2804150763358777,0.87312240773848115]
[null,"Nacka Närsjukhus","Stockholm",31.801990667429916,37.174541947926713,3.9952127659574468,0.89610552235899088]
[null,"Carema Rehabcentrum i Saltsjöbaden","Stockholm",18.641046498988597,0.28608164577306333,7.373303167420814,0.94848851001808088]
[null,"Nynäshamns sjukhus","Stockholm",5.8454424859170961,9.5821279331404696,5.5399113082039912,0.88788958550917552]
[null,"Handengeriatriken, Capio Legevisitten AB","Stockholm",47.033195716300206,32.2854387656702,7.4595285430275489,0.90929652725803178]
[null,"Jakobsbergs sjukhus","Stockholm",9.5539350154250169,2.9990356798457087,19.131221719457013,0.92610895657570846]
[null,"Lidingö sjukhus","Stockholm",12.502751983767121,1.3596914175506269,16.910714285714285,0.94019154576009745]
[null,"Sollentuna sjukhus","Stockholm",69.168169891643032,68.527804564448729,5.8243940175348117,0.90023252870308068]
[null,"Vårdgivare Bromma sjukhus","Stockholm",5.9237296620677711,8.6788813886210223E-2,1.0298507462686568,0.94855605112548236]
[null,"Danviksgeriatriken Familjeläkarna i Saltsjöbaden AB","Stockholm",17.156489677168381,22.018643522982963,6.1468464130958109,0.89379433654893636]
[null,"Capio Urokirurgiskt centrum CFTK Stockholm","Stockholm",2.8995250426176074E-2,0,1,0.95]
[null,"Ortho o Spine Center","Stockholm",9.4814468893595745,7.3931211828993898E-2,1.1113736078299021,0.94922628690308142]
[null,"Nacka kommun Hallens äldrecentrum","Stockholm",9.5945283660216631,2.2822243651558982,15.457692307692307,0.93078410473963258]
[null,"Mandometerkliniken","Stockholm",29.551959234358655,2.1922211507553842,83.646153846153851,0.94309410063778676]
[null,"Södermalms läkarhus","Stockholm",0.33634490494364244,0,1.0357142857142858,0.95]
[null,"Sjukhem NÖSO","Stockholm",13.592973399791344,2.0636451301832208,16.761006289308177,0.93681934335800288]
[null,"Furuhöjdens rehabiliteringshem","Stockholm",35.406100295403604,0,6.1300200803212848,{"$f":"(((D101/(SUM(D101,E101))*0.95)+(E101/SUM(D101,E101)*0.85)))","v":0.95}]
[null,"Mälarsjukhuset","Södermanland",26.534201782408459,268.55583413693347,4.418703144776555,0.85899190028553218]
[null,"Nyköpings lasarett","Södermanland",9.1799928967283169,125.8330761812922,3.5892170569730864,0.85679933650824824]
[null,"Kullbergska sjukhuset","Södermanland",4.5879218235522119,42.806171648987466,3.5624192297751356,0.85968036623848587]
[null,"Akademiska sjukhuset","Uppsala",244.00893557223455,417.86232722597236,5.2682737364372167,0.88686652515182973]
[null,"Specialistcenter Uppsala AB, S:t Johanniskliniken","Uppsala",0.53830663118454525,3.2144005143040825E-3,0.94607843137254899,0.94940641261813596]
[null,"Lasarettet i Enköping","Uppsala",11.608208585652292,56.541305046608812,4.7907608695652177,0.86703344303862662]
[null,"Art Clinic Uppsala","Uppsala",0.39114178889847573,3.2144005143040825E-3,0.88387096774193552,0.94918489918489901]
[null,"Elisabethsjukhuset","Uppsala",2.6958720368611386,0.87110253937640636,0.99149840595111582,0.92557867260452276]
[null,"Centralsjukhuset i Karlstad","Värmland",24.54947588358397,354.71359691417547,4.4242016160061564,0.85647294124958873]
[null,"Kristinehamns sjukhus","Värmland",4.3140638481449521E-2,10.642880102860817,6.205223880597015,0.85040371097460565]
[null,"Sjukhuset i Arvika","Värmland",5.0586601760500631,38.3621343619415,3.8639373871161951,0.86165031692735139]
[null,"Sjukhuset i Säffle","Värmland",0,13.484410157505625,6.9800332778702163,0.85]
[null,"Sjukhuset i Torsby","Värmland",5.8938284277207256,48.032111861137899,4.3019277762693457,0.86092948661840651]
[null,"FrykCenter Rehabilitering","Värmland",10.736266896750074,7.3931211828993898E-2,15.915254237288135,0.94931609753043911]
[null,"Norrlands universitetssjukhus","Västerbotten",118.76250710744213,255.69668916747028,4.8131128707996558,0.88171574053698798]
[null,"Skellefteå lasarett","Västerbotten",9.0033882980022781,112.08235294117647,4.5811245974733712,0.85743554790668375]
[null,"Lycksele lasarett","Västerbotten",8.167361640556221,41.973063323690134,3.650727138279517,0.86628897570449404]
[null,"Malå Sjukstuga","Västerbotten",0,0,0]
[null,"Dorotea Sjukstuga","Västerbotten",8.3405234397469094E-2,2.7097396335583412,8.9896907216494846,0.85298606904906116]
[null,"Sorsele Sjukstuga","Västerbotten",5.4644808743169404E-2,2.5683060109289619,5.6805555555555554,0.8520833333333333]
[null,"Tärnaby Sjukstuga","Västerbotten",2.8760425654299683E-2,1.0414657666345226,4.4533333333333331,0.85268732216250387]
[null,"Åsele Sjukstuga","Västerbotten",6.9025021570319242E-2,2.1825779492124719,7.8111111111111109,0.85306559471034649]
[null,"Storumans Sjukstuga","Västerbotten",0.13517400057520854,5.9627129540340729,5.3577464788732394,0.8522167351015425]
[null,"Vilhelmina Sjukstuga","Västerbotten",0.31348863963186657,4.503375120540019,4.6604938271604937,0.85650814835627975]
[null,"Axlagården Umeå hospice","Västerbotten",6.6810468794938167,8.8653166184506595,23.095454545454544,0.89297498177227852]
[null,"Länssjukhuset i Sundsvall - Härnösand","Västernorrland",13.0481446187686,261.82703310832534,4.2906040268456378,0.8547469344910158]
[null,"Örnsköldsviks sjukhus","Västernorrland",5.8825895954014467,99.193281902925108,3.7449640711509011,0.85559842094242844]
[null,"Sollefteå sjukhus","Västernorrland",3.0334126052995951,35.800707168113149,3.6852207293666028,0.85781120474211547]
[null,"Västmanlands sjukhus Västerås","Västmanland",63.721175986095631,298.87270973963354,3.7985468503667148,0.86757370394113476]
[null,"Västmanlands sjukhus Sala","Västmanland",16.397470188906059,3.7319189971070399,4.384615384615385,0.9314603465479212]
[null,"Västmanlands sjukhus Köping","Västmanland",12.926696549548522,63.415300546448094,4.6858575727181542,0.86693261512833331]
[null,"Kirurghuset Västerås","Västmanland",2.3008340523439749E-2,0,1.3333333333333333,{"$f":"(((D133/(SUM(D133,E133))*0.95)+(E133/SUM(D133,E133)*0.85)))","v":0.95}]
[null,"Carlanderska sjukhuset","Västra Götaland",9.6922634454989929,3.5358405657344903E-2,1.0074493444576877,0.94963651541765948]
[null,"Art Clinic Göteborg","Västra Götaland",3.7446074201898192,0,0.95454545454545459,0.95]
[null,"Capio Spine Center Göteborg","Västra Götaland",3.3103249928098935,0,0.95123966942148763,0.95]
[null,"Capio Ortho Center Göteborg AB","Västra Götaland",2.2116767328156457,0,1.0026075619295958,0.95]
[null,"Capio Gastro Center Göteborg AB, Mottagning","Västra Götaland",0.58383664078228359,0,1.0304568527918783,0.95]
[null,"Hospice Gabriel","Västra Götaland",4.3457003163646819,0,12.805084745762711,0.95]
[null,"Sahlgrenska universitetssjukhuset","Västra Götaland",295.9996081871422,885.27746705239485,4.4400042349951772,0.87505759354782364]
[null,"Norra Älvsborgs Länssjukhus och Uddevalla sjukhus","Västra Götaland",54.631484191203349,429.27547412407591,4.4002903875785231,0.86128966700156628]
[null,"Södra Älvsborgs sjukhus","Västra Götaland",42.910730983286641,293.48630665380904,4.2988457502623296,0.86275597766398249]
[null,"Sjukhusen i Väster","Västra Götaland",49.276077478680421,232.8408550305368,5.3064614261377461,0.86746654376268972]
[null,"Skaraborgs sjukhus","Västra Götaland",16.706353722238866,392.63494053359051,4.2480095270500167,0.85408127739777884]
[null,"Universitetssjukhuset Örebro","Örebro",153.44562441035296,299.77791706846676,4.1144615205155874,0.88385649913719777]
[null,"Karlskoga lasarett","Örebro",4.5505712463991763,29.394631951141115,4.1422037422037423,0.86340563855198504]
[null,"Lindesbergs lasarett","Örebro",2.9590443781030311,17.652009000321442,3.3604178757980265,0.8643565897568366]
[null,"Universitetssjukhuset i Linköping","Östergötland",93.919492090091055,314.13130826100928,4.379834395338535,0.87301661754107074]
[null,"Lasarettet i Finspång","Östergötland",2.8789186079953986,14.863387978142077,10.653409090909092,{"$f":"(((D149/(SUM(D149,E149))*0.95)+(E149/SUM(D149,E149)*0.85)))","v":0.86622629275409313}]
[null,"Vrinnevisjukhuset i Norrköping","Östergötland",16.78607659368765,200.50810028929604,3.144789258840309,0.85772504667841476]
[null,"Lasarettet i Motala","Östergötland",2.6273462531162326,51.563805850208936,4.8152417547230231,0.85484829377332072]
[null,"Capio Specialistvård Motala","Östergötland",5.4443485763589301,2.3786563805850212,1.8807142857142858,0.91959408317294189]
[null,"Total","Sverige",{"$f":"SUBTOTAL(109,SjukhusTabell[Vårdplatsbehov planerad vård])","v":3660.9286714411073},{"$f":"SUBTOTAL(109,SjukhusTabell[Vårdplatsbehov oplanerad vård])","v":13421.175120540023}]

{"sheet":"Stödflik","index":9,"n_rows":12,"n_cols":3,"rows_kept":12,"cut":false,"hidden":true,"merged":[[0,1,0,10]]}
[null,"Stödflik\nI denna flik finns möjliga namn på vårdnivåer att mata in data för."]
[]
[]
[null,"Singular","Plural"]
[null,"enhet","enheter"]
[null,"sjukhus","sjukhus"]
[null,"klinik","kliniker"]
[null,"avdelning","avdelningar"]
[null,"centrumbildning","centrumbildningar"]
[null,"verksamhetsområde","verksamhetsområden"]
[null,"mottagning","mottagningar"]
[null,"sektion","sektioner"]